{"text_format":"3","workbook":"xlsx","n_sheets":5,"sheets":["الفاتورة","العملاء","الفواتير - رئيسية","تفاصيل الفاتورة","حول متعقب الفاتورة"],"not_rendered":{"defined_names":8},"read":"whole","date_system":"1900"}

{"sheet":"الفاتورة","index":0,"n_rows":39,"n_cols":7,"rows_kept":39,"merged":[[1,1,1,2],[1,3,1,4],[1,5,1,6],[2,1,2,2],[2,3,2,4],[2,5,2,6],[3,3,3,4],[4,3,4,4],[5,3,5,4],[37,1,37,4],[38,1,38,4]]}
[null,"اسم الشركة"]
[null,"عنوان الشارع",null,"رقم الهاتف: رقم الهاتف",null,"البريد الإلكتروني"]
[null,"المدينة، الرمز البريدي للمنطقة",null,"رقم الفاكس: رقم الفاكس",null,"موقع الويب"]
[null,"فوترة إلى:",{"$f":"IFERROR(VLOOKUP(VLOOKUP(rngInvoice,الفواتير_رئيسية[],2,FALSE),قائمة_العملاء[],3,TRUE),\"\")","v":"Contoso, Ltd"},{"$f":"\"الهاتف:   \"&IFERROR(VLOOKUP(VLOOKUP(rngInvoice,الفواتير_رئيسية[],2,FALSE),قائمة_العملاء[],9,FALSE),\"\")","v":"الهاتف:   432-555-0189"},null,"رقم الفاتورة:","3-456-2"]
[null,"العنوان:",{"$f":"IFERROR(IF((VLOOKUP(VLOOKUP(rngInvoice,الفواتير_رئيسية[],2,FALSE),قائمة_العملاء[],5,FALSE))=\"\",\"\",(VLOOKUP(VLOOKUP(rngInvoice,الفواتير_رئيسية[],2,FALSE),قائمة_العملاء[],5,FALSE))),\"\")","v":"567 شارع هشام بن عبد الملك"},{"$f":"\"الفاكس: \"&IFERROR(VLOOKUP(VLOOKUP(rngInvoice,الفواتير_رئيسية[],2,FALSE),قائمة_العملاء[],11,FALSE),\"\")","v":"الفاكس: 432-555-0123"},null,"تاريخ الفاتورة:",{"$f":"IFERROR(IF(VLOOKUP(rngInvoice,الفواتير_رئيسية[],3,FALSE)=\"\",\"\",VLOOKUP(rngInvoice,الفواتير_رئيسية[],3,FALSE)),\"\")","v":"2019-08-08"}]
[null,null,{"$f":"IFERROR(VLOOKUP(VLOOKUP(rngInvoice,الفواتير_رئيسية[],2,FALSE),قائمة_العملاء[],6,FALSE)&\", \"& VLOOKUP(VLOOKUP(G4,الفواتير_رئيسية[],2,FALSE),قائمة_العملاء[],7,FALSE)&\" \"&VLOOKUP(VLOOKUP(G4,الفواتير_رئيسية[],2,FALSE),قائمة_العملاء[],8,FALSE),\"\")","v":"الرياض, الرياض 098765"},{"$f":"\"البريد الإلكتروني: \"&IFERROR(VLOOKUP(VLOOKUP(rngInvoice,الفواتير_رئيسية[],2,FALSE),قائمة_العملاء[],10,FALSE),\"\")","v":"البريد الإلكتروني: someone@example.com"}]
[null,{"$f":"\"فاتورة لـ: \"&IFERROR(VLOOKUP(rngInvoice,الفواتير_رئيسية[],4),\"\")","v":"فاتورة لـ: المشروع 2"}]
[null,"رقم العنصر","الوصف","الكمية","سعر الوحدة","الخصم","السعر"]
[null,{"$f":"IFERROR(INDEX(تفاصيل_الفاتورة[],SMALL(IF(تفاصيل_الفاتورة[رقم الفاتورة]=rngInvoice,ROW(تفاصيل_الفاتورة[])-ROW(تفاصيل_الفاتورة[#Headers])), ROW(1:1)), MATCH($B$8, تفاصيل_الفاتورة[#Headers], 0)),\"\")","v":"Z4567"},{"$f":"IFERROR(INDEX(تفاصيل_الفاتورة[],SMALL(IF(تفاصيل_الفاتورة[رقم الفاتورة]=rngInvoice,ROW(تفاصيل_الفاتورة[])-ROW(تفاصيل_الفاتورة[#Headers])), ROW(1:1)), MATCH($C$8, تفاصيل_الفاتورة[#Headers], 0)),\"\")","v":"الفاتورة 3-456-2 البيانات 1"},{"$f":"IFERROR(INDEX(تفاصيل_الفاتورة[],SMALL(IF(تفاصيل_الفاتورة[رقم الفاتورة]=rngInvoice,ROW(تفاصيل_الفاتورة[])-ROW(تفاصيل_الفاتورة[#Headers])), ROW(1:1)), MATCH($D$8, تفاصيل_الفاتورة[#Headers], 0)),\"\")","v":39},{"$f":"IFERROR(INDEX(تفاصيل_الفاتورة[],SMALL(IF(تفاصيل_الفاتورة[رقم الفاتورة]=rngInvoice,ROW(تفاصيل_الفاتورة[])-ROW(تفاصيل_الفاتورة[#Headers])), ROW(1:1)), MATCH($E$8, تفاصيل_الفاتورة[#Headers], 0)),\"\")","v":{"v":5,"d":"ر.س.‏ 5.00"}},{"$f":"IFERROR(INDEX(تفاصيل_الفاتورة[],SMALL(IF(تفاصيل_الفاتورة[رقم الفاتورة]=rngInvoice,ROW(تفاصيل_الفاتورة[])-ROW(تفاصيل_الفاتورة[#Headers])), ROW(1:1)), MATCH($F$8, تفاصيل_الفاتورة[#Headers], 0)),\"\")","v":0},{"$f":"IFERROR((D9*E9)-F9,\"\")","v":{"v":195,"d":"ر.س.‏ 195.00"}}]
[null,{"$f":"IFERROR(INDEX(تفاصيل_الفاتورة[],SMALL(IF(تفاصيل_الفاتورة[رقم الفاتورة]=rngInvoice,ROW(تفاصيل_الفاتورة[])-ROW(تفاصيل_الفاتورة[#Headers])), ROW(2:2)), MATCH($B$8, تفاصيل_الفاتورة[#Headers], 0)),\"\")","v":"Z4568"},{"$f":"IFERROR(INDEX(تفاصيل_الفاتورة[],SMALL(IF(تفاصيل_الفاتورة[رقم الفاتورة]=rngInvoice,ROW(تفاصيل_الفاتورة[])-ROW(تفاصيل_الفاتورة[#Headers])), ROW(2:2)), MATCH($C$8, تفاصيل_الفاتورة[#Headers], 0)),\"\")","v":"الفاتورة 3-456-2 البيانات 2"},{"$f":"IFERROR(INDEX(تفاصيل_الفاتورة[],SMALL(IF(تفاصيل_الفاتورة[رقم الفاتورة]=rngInvoice,ROW(تفاصيل_الفاتورة[])-ROW(تفاصيل_الفاتورة[#Headers])), ROW(2:2)), MATCH($D$8, تفاصيل_الفاتورة[#Headers], 0)),\"\")","v":40},{"$f":"IFERROR(INDEX(تفاصيل_الفاتورة[],SMALL(IF(تفاصيل_الفاتورة[رقم الفاتورة]=rngInvoice,ROW(تفاصيل_الفاتورة[])-ROW(تفاصيل_الفاتورة[#Headers])), ROW(2:2)), MATCH($E$8, تفاصيل_الفاتورة[#Headers], 0)),\"\")","v":{"v":4,"d":"ر.س.‏ 4.00"}},{"$f":"IFERROR(INDEX(تفاصيل_الفاتورة[],SMALL(IF(تفاصيل_الفاتورة[رقم الفاتورة]=rngInvoice,ROW(تفاصيل_الفاتورة[])-ROW(تفاصيل_الفاتورة[#Headers])), ROW(2:2)), MATCH($F$8, تفاصيل_الفاتورة[#Headers], 0)),\"\")","v":{"v":5,"d":"ر.س.‏ 5.00"}},{"v":155,"d":"ر.س.‏ 155.00"}]
[null,{"$f":"IFERROR(INDEX(تفاصيل_الفاتورة[],SMALL(IF(تفاصيل_الفاتورة[رقم الفاتورة]=rngInvoice,ROW(تفاصيل_الفاتورة[])-ROW(تفاصيل_الفاتورة[#Headers])), ROW(3:3)), MATCH($B$8, تفاصيل_الفاتورة[#Headers], 0)),\"\")","v":"Z4569"},{"$f":"IFERROR(INDEX(تفاصيل_الفاتورة[],SMALL(IF(تفاصيل_الفاتورة[رقم الفاتورة]=rngInvoice,ROW(تفاصيل_الفاتورة[])-ROW(تفاصيل_الفاتورة[#Headers])), ROW(3:3)), MATCH($C$8, تفاصيل_الفاتورة[#Headers], 0)),\"\")","v":"الفاتورة 3-456-2 البيانات 3"},{"$f":"IFERROR(INDEX(تفاصيل_الفاتورة[],SMALL(IF(تفاصيل_الفاتورة[رقم الفاتورة]=rngInvoice,ROW(تفاصيل_الفاتورة[])-ROW(تفاصيل_الفاتورة[#Headers])), ROW(3:3)), MATCH($D$8, تفاصيل_الفاتورة[#Headers], 0)),\"\")","v":30},{"$f":"IFERROR(INDEX(تفاصيل_الفاتورة[],SMALL(IF(تفاصيل_الفاتورة[رقم الفاتورة]=rngInvoice,ROW(تفاصيل_الفاتورة[])-ROW(تفاصيل_الفاتورة[#Headers])), ROW(3:3)), MATCH($E$8, تفاصيل_الفاتورة[#Headers], 0)),\"\")","v":{"v":6,"d":"ر.س.‏ 6.00"}},{"$f":"IFERROR(INDEX(تفاصيل_الفاتورة[],SMALL(IF(تفاصيل_الفاتورة[رقم الفاتورة]=rngInvoice,ROW(تفاصيل_الفاتورة[])-ROW(تفاصيل_الفاتورة[#Headers])), ROW(3:3)), MATCH($F$8, تفاصيل_الفاتورة[#Headers], 0)),\"\")","v":{"v":7,"d":"ر.س.‏ 7.00"}},{"v":173,"d":"ر.س.‏ 173.00"}]
[null,{"$f":"IFERROR(INDEX(تفاصيل_الفاتورة[],SMALL(IF(تفاصيل_الفاتورة[رقم الفاتورة]=rngInvoice,ROW(تفاصيل_الفاتورة[])-ROW(تفاصيل_الفاتورة[#Headers])), ROW(4:4)), MATCH($B$8, تفاصيل_الفاتورة[#Headers], 0)),\"\")","v":"Z4570"},{"$f":"IFERROR(INDEX(تفاصيل_الفاتورة[],SMALL(IF(تفاصيل_الفاتورة[رقم الفاتورة]=rngInvoice,ROW(تفاصيل_الفاتورة[])-ROW(تفاصيل_الفاتورة[#Headers])), ROW(4:4)), MATCH($C$8, تفاصيل_الفاتورة[#Headers], 0)),\"\")","v":"الفاتورة 3-456-2 البيانات 4"},{"$f":"IFERROR(INDEX(تفاصيل_الفاتورة[],SMALL(IF(تفاصيل_الفاتورة[رقم الفاتورة]=rngInvoice,ROW(تفاصيل_الفاتورة[])-ROW(تفاصيل_الفاتورة[#Headers])), ROW(4:4)), MATCH($D$8, تفاصيل_الفاتورة[#Headers], 0)),\"\")","v":40},{"$f":"IFERROR(INDEX(تفاصيل_الفاتورة[],SMALL(IF(تفاصيل_الفاتورة[رقم الفاتورة]=rngInvoice,ROW(تفاصيل_الفاتورة[])-ROW(تفاصيل_الفاتورة[#Headers])), ROW(4:4)), MATCH($E$8, تفاصيل_الفاتورة[#Headers], 0)),\"\")","v":{"v":7,"d":"ر.س.‏ 7.00"}},{"$f":"IFERROR(INDEX(تفاصيل_الفاتورة[],SMALL(IF(تفاصيل_الفاتورة[رقم الفاتورة]=rngInvoice,ROW(تفاصيل_الفاتورة[])-ROW(تفاصيل_الفاتورة[#Headers])), ROW(4:4)), MATCH($F$8, تفاصيل_الفاتورة[#Headers], 0)),\"\")","v":0},{"v":280,"d":"ر.س.‏ 280.00"}]
[null,{"$f":"IFERROR(INDEX(تفاصيل_الفاتورة[],SMALL(IF(تفاصيل_الفاتورة[رقم الفاتورة]=rngInvoice,ROW(تفاصيل_الفاتورة[])-ROW(تفاصيل_الفاتورة[#Headers])), ROW(5:5)), MATCH($B$8, تفاصيل_الفاتورة[#Headers], 0)),\"\")","v":"Z4571"},{"$f":"IFERROR(INDEX(تفاصيل_الفاتورة[],SMALL(IF(تفاصيل_الفاتورة[رقم الفاتورة]=rngInvoice,ROW(تفاصيل_الفاتورة[])-ROW(تفاصيل_الفاتورة[#Headers])), ROW(5:5)), MATCH($C$8, تفاصيل_الفاتورة[#Headers], 0)),\"\")","v":"الفاتورة 3-456-2 البيانات 5"},{"$f":"IFERROR(INDEX(تفاصيل_الفاتورة[],SMALL(IF(تفاصيل_الفاتورة[رقم الفاتورة]=rngInvoice,ROW(تفاصيل_الفاتورة[])-ROW(تفاصيل_الفاتورة[#Headers])), ROW(5:5)), MATCH($D$8, تفاصيل_الفاتورة[#Headers], 0)),\"\")","v":10},{"$f":"IFERROR(INDEX(تفاصيل_الفاتورة[],SMALL(IF(تفاصيل_الفاتورة[رقم الفاتورة]=rngInvoice,ROW(تفاصيل_الفاتورة[])-ROW(تفاصيل_الفاتورة[#Headers])), ROW(5:5)), MATCH($E$8, تفاصيل_الفاتورة[#Headers], 0)),\"\")","v":{"v":4,"d":"ر.س.‏ 4.00"}},{"$f":"IFERROR(INDEX(تفاصيل_الفاتورة[],SMALL(IF(تفاصيل_الفاتورة[رقم الفاتورة]=rngInvoice,ROW(تفاصيل_الفاتورة[])-ROW(تفاصيل_الفاتورة[#Headers])), ROW(5:5)), MATCH($F$8, تفاصيل_الفاتورة[#Headers], 0)),\"\")","v":0},{"v":40,"d":"ر.س.‏ 40.00"}]
[null,{"$f":"IFERROR(INDEX(تفاصيل_الفاتورة[],SMALL(IF(تفاصيل_الفاتورة[رقم الفاتورة]=rngInvoice,ROW(تفاصيل_الفاتورة[])-ROW(تفاصيل_الفاتورة[#Headers])), ROW(6:6)), MATCH($B$8, تفاصيل_الفاتورة[#Headers], 0)),\"\")","v":"Z4572"},{"$f":"IFERROR(INDEX(تفاصيل_الفاتورة[],SMALL(IF(تفاصيل_الفاتورة[رقم الفاتورة]=rngInvoice,ROW(تفاصيل_الفاتورة[])-ROW(تفاصيل_الفاتورة[#Headers])), ROW(6:6)), MATCH($C$8, تفاصيل_الفاتورة[#Headers], 0)),\"\")","v":"الفاتورة 3-456-2 البيانات 6"},{"$f":"IFERROR(INDEX(تفاصيل_الفاتورة[],SMALL(IF(تفاصيل_الفاتورة[رقم الفاتورة]=rngInvoice,ROW(تفاصيل_الفاتورة[])-ROW(تفاصيل_الفاتورة[#Headers])), ROW(6:6)), MATCH($D$8, تفاصيل_الفاتورة[#Headers], 0)),\"\")","v":5},{"$f":"IFERROR(INDEX(تفاصيل_الفاتورة[],SMALL(IF(تفاصيل_الفاتورة[رقم الفاتورة]=rngInvoice,ROW(تفاصيل_الفاتورة[])-ROW(تفاصيل_الفاتورة[#Headers])), ROW(6:6)), MATCH($E$8, تفاصيل_الفاتورة[#Headers], 0)),\"\")","v":{"v":8,"d":"ر.س.‏ 8.00"}},{"$f":"IFERROR(INDEX(تفاصيل_الفاتورة[],SMALL(IF(تفاصيل_الفاتورة[رقم الفاتورة]=rngInvoice,ROW(تفاصيل_الفاتورة[])-ROW(تفاصيل_الفاتورة[#Headers])), ROW(6:6)), MATCH($F$8, تفاصيل_الفاتورة[#Headers], 0)),\"\")","v":0},{"v":40,"d":"ر.س.‏ 40.00"}]
[null,{"$f":"IFERROR(INDEX(تفاصيل_الفاتورة[],SMALL(IF(تفاصيل_الفاتورة[رقم الفاتورة]=rngInvoice,ROW(تفاصيل_الفاتورة[])-ROW(تفاصيل_الفاتورة[#Headers])), ROW(7:7)), MATCH($B$8, تفاصيل_الفاتورة[#Headers], 0)),\"\")","v":"Z4573"},{"$f":"IFERROR(INDEX(تفاصيل_الفاتورة[],SMALL(IF(تفاصيل_الفاتورة[رقم الفاتورة]=rngInvoice,ROW(تفاصيل_الفاتورة[])-ROW(تفاصيل_الفاتورة[#Headers])), ROW(7:7)), MATCH($C$8, تفاصيل_الفاتورة[#Headers], 0)),\"\")","v":"الفاتورة 3-456-2 البيانات 7"},{"$f":"IFERROR(INDEX(تفاصيل_الفاتورة[],SMALL(IF(تفاصيل_الفاتورة[رقم الفاتورة]=rngInvoice,ROW(تفاصيل_الفاتورة[])-ROW(تفاصيل_الفاتورة[#Headers])), ROW(7:7)), MATCH($D$8, تفاصيل_الفاتورة[#Headers], 0)),\"\")","v":70},{"$f":"IFERROR(INDEX(تفاصيل_الفاتورة[],SMALL(IF(تفاصيل_الفاتورة[رقم الفاتورة]=rngInvoice,ROW(تفاصيل_الفاتورة[])-ROW(تفاصيل_الفاتورة[#Headers])), ROW(7:7)), MATCH($E$8, تفاصيل_الفاتورة[#Headers], 0)),\"\")","v":{"v":6,"d":"ر.س.‏ 6.00"}},{"$f":"IFERROR(INDEX(تفاصيل_الفاتورة[],SMALL(IF(تفاصيل_الفاتورة[رقم الفاتورة]=rngInvoice,ROW(تفاصيل_الفاتورة[])-ROW(تفاصيل_الفاتورة[#Headers])), ROW(7:7)), MATCH($F$8, تفاصيل_الفاتورة[#Headers], 0)),\"\")","v":0},{"v":420,"d":"ر.س.‏ 420.00"}]
[null,{"$f":"IFERROR(INDEX(تفاصيل_الفاتورة[],SMALL(IF(تفاصيل_الفاتورة[رقم الفاتورة]=rngInvoice,ROW(تفاصيل_الفاتورة[])-ROW(تفاصيل_الفاتورة[#Headers])), ROW(8:8)), MATCH($B$8, تفاصيل_الفاتورة[#Headers], 0)),\"\")","v":"Z4574"},{"$f":"IFERROR(INDEX(تفاصيل_الفاتورة[],SMALL(IF(تفاصيل_الفاتورة[رقم الفاتورة]=rngInvoice,ROW(تفاصيل_الفاتورة[])-ROW(تفاصيل_الفاتورة[#Headers])), ROW(8:8)), MATCH($C$8, تفاصيل_الفاتورة[#Headers], 0)),\"\")","v":"الفاتورة 3-456-2 البيانات 8"},{"$f":"IFERROR(INDEX(تفاصيل_الفاتورة[],SMALL(IF(تفاصيل_الفاتورة[رقم الفاتورة]=rngInvoice,ROW(تفاصيل_الفاتورة[])-ROW(تفاصيل_الفاتورة[#Headers])), ROW(8:8)), MATCH($D$8, تفاصيل_الفاتورة[#Headers], 0)),\"\")","v":25},{"$f":"IFERROR(INDEX(تفاصيل_الفاتورة[],SMALL(IF(تفاصيل_الفاتورة[رقم الفاتورة]=rngInvoice,ROW(تفاصيل_الفاتورة[])-ROW(تفاصيل_الفاتورة[#Headers])), ROW(8:8)), MATCH($E$8, تفاصيل_الفاتورة[#Headers], 0)),\"\")","v":{"v":4,"d":"ر.س.‏ 4.00"}},{"$f":"IFERROR(INDEX(تفاصيل_الفاتورة[],SMALL(IF(تفاصيل_الفاتورة[رقم الفاتورة]=rngInvoice,ROW(تفاصيل_الفاتورة[])-ROW(تفاصيل_الفاتورة[#Headers])), ROW(8:8)), MATCH($F$8, تفاصيل_الفاتورة[#Headers], 0)),\"\")","v":0},{"v":100,"d":"ر.س.‏ 100.00"}]
[null,{"$f":"IFERROR(INDEX(تفاصيل_الفاتورة[],SMALL(IF(تفاصيل_الفاتورة[رقم الفاتورة]=rngInvoice,ROW(تفاصيل_الفاتورة[])-ROW(تفاصيل_الفاتورة[#Headers])), ROW(9:9)), MATCH($B$8, تفاصيل_الفاتورة[#Headers], 0)),\"\")","v":"Z4575"},{"$f":"IFERROR(INDEX(تفاصيل_الفاتورة[],SMALL(IF(تفاصيل_الفاتورة[رقم الفاتورة]=rngInvoice,ROW(تفاصيل_الفاتورة[])-ROW(تفاصيل_الفاتورة[#Headers])), ROW(9:9)), MATCH($C$8, تفاصيل_الفاتورة[#Headers], 0)),\"\")","v":"الفاتورة 3-456-2 البيانات 9"},{"$f":"IFERROR(INDEX(تفاصيل_الفاتورة[],SMALL(IF(تفاصيل_الفاتورة[رقم الفاتورة]=rngInvoice,ROW(تفاصيل_الفاتورة[])-ROW(تفاصيل_الفاتورة[#Headers])), ROW(9:9)), MATCH($D$8, تفاصيل_الفاتورة[#Headers], 0)),\"\")","v":5},{"$f":"IFERROR(INDEX(تفاصيل_الفاتورة[],SMALL(IF(تفاصيل_الفاتورة[رقم الفاتورة]=rngInvoice,ROW(تفاصيل_الفاتورة[])-ROW(تفاصيل_الفاتورة[#Headers])), ROW(9:9)), MATCH($E$8, تفاصيل_الفاتورة[#Headers], 0)),\"\")","v":{"v":7,"d":"ر.س.‏ 7.00"}},{"$f":"IFERROR(INDEX(تفاصيل_الفاتورة[],SMALL(IF(تفاصيل_الفاتورة[رقم الفاتورة]=rngInvoice,ROW(تفاصيل_الفاتورة[])-ROW(تفاصيل_الفاتورة[#Headers])), ROW(9:9)), MATCH($F$8, تفاصيل_الفاتورة[#Headers], 0)),\"\")","v":{"v":3,"d":"ر.س.‏ 3.00"}},{"v":32,"d":"ر.س.‏ 32.00"}]
[null,{"$f":"IFERROR(INDEX(تفاصيل_الفاتورة[],SMALL(IF(تفاصيل_الفاتورة[رقم الفاتورة]=rngInvoice,ROW(تفاصيل_الفاتورة[])-ROW(تفاصيل_الفاتورة[#Headers])), ROW(10:10)), MATCH($B$8, تفاصيل_الفاتورة[#Headers], 0)),\"\")","v":"Z4576"},{"$f":"IFERROR(INDEX(تفاصيل_الفاتورة[],SMALL(IF(تفاصيل_الفاتورة[رقم الفاتورة]=rngInvoice,ROW(تفاصيل_الفاتورة[])-ROW(تفاصيل_الفاتورة[#Headers])), ROW(10:10)), MATCH($C$8, تفاصيل_الفاتورة[#Headers], 0)),\"\")","v":"الفاتورة 3-456-2 البيانات 10"},{"$f":"IFERROR(INDEX(تفاصيل_الفاتورة[],SMALL(IF(تفاصيل_الفاتورة[رقم الفاتورة]=rngInvoice,ROW(تفاصيل_الفاتورة[])-ROW(تفاصيل_الفاتورة[#Headers])), ROW(10:10)), MATCH($D$8, تفاصيل_الفاتورة[#Headers], 0)),\"\")","v":80},{"$f":"IFERROR(INDEX(تفاصيل_الفاتورة[],SMALL(IF(تفاصيل_الفاتورة[رقم الفاتورة]=rngInvoice,ROW(تفاصيل_الفاتورة[])-ROW(تفاصيل_الفاتورة[#Headers])), ROW(10:10)), MATCH($E$8, تفاصيل_الفاتورة[#Headers], 0)),\"\")","v":{"v":1,"d":"ر.س.‏ 1.00"}},{"$f":"IFERROR(INDEX(تفاصيل_الفاتورة[],SMALL(IF(تفاصيل_الفاتورة[رقم الفاتورة]=rngInvoice,ROW(تفاصيل_الفاتورة[])-ROW(تفاصيل_الفاتورة[#Headers])), ROW(10:10)), MATCH($F$8, تفاصيل_الفاتورة[#Headers], 0)),\"\")","v":0},{"v":80,"d":"ر.س.‏ 80.00"}]
[null,{"$f":"IFERROR(INDEX(تفاصيل_الفاتورة[],SMALL(IF(تفاصيل_الفاتورة[رقم الفاتورة]=rngInvoice,ROW(تفاصيل_الفاتورة[])-ROW(تفاصيل_الفاتورة[#Headers])), ROW(11:11)), MATCH($B$8, تفاصيل_الفاتورة[#Headers], 0)),\"\")","v":"Z4577"},{"$f":"IFERROR(INDEX(تفاصيل_الفاتورة[],SMALL(IF(تفاصيل_الفاتورة[رقم الفاتورة]=rngInvoice,ROW(تفاصيل_الفاتورة[])-ROW(تفاصيل_الفاتورة[#Headers])), ROW(11:11)), MATCH($C$8, تفاصيل_الفاتورة[#Headers], 0)),\"\")","v":"الفاتورة 3-456-2 البيانات 11"},{"$f":"IFERROR(INDEX(تفاصيل_الفاتورة[],SMALL(IF(تفاصيل_الفاتورة[رقم الفاتورة]=rngInvoice,ROW(تفاصيل_الفاتورة[])-ROW(تفاصيل_الفاتورة[#Headers])), ROW(11:11)), MATCH($D$8, تفاصيل_الفاتورة[#Headers], 0)),\"\")","v":65},{"$f":"IFERROR(INDEX(تفاصيل_الفاتورة[],SMALL(IF(تفاصيل_الفاتورة[رقم الفاتورة]=rngInvoice,ROW(تفاصيل_الفاتورة[])-ROW(تفاصيل_الفاتورة[#Headers])), ROW(11:11)), MATCH($E$8, تفاصيل_الفاتورة[#Headers], 0)),\"\")","v":{"v":7,"d":"ر.س.‏ 7.00"}},{"$f":"IFERROR(INDEX(تفاصيل_الفاتورة[],SMALL(IF(تفاصيل_الفاتورة[رقم الفاتورة]=rngInvoice,ROW(تفاصيل_الفاتورة[])-ROW(تفاصيل_الفاتورة[#Headers])), ROW(11:11)), MATCH($F$8, تفاصيل_الفاتورة[#Headers], 0)),\"\")","v":0},{"v":455,"d":"ر.س.‏ 455.00"}]
[null,{"$f":"IFERROR(INDEX(تفاصيل_الفاتورة[],SMALL(IF(تفاصيل_الفاتورة[رقم الفاتورة]=rngInvoice,ROW(تفاصيل_الفاتورة[])-ROW(تفاصيل_الفاتورة[#Headers])), ROW(12:12)), MATCH($B$8, تفاصيل_الفاتورة[#Headers], 0)),\"\")","v":"Z4578"},{"$f":"IFERROR(INDEX(تفاصيل_الفاتورة[],SMALL(IF(تفاصيل_الفاتورة[رقم الفاتورة]=rngInvoice,ROW(تفاصيل_الفاتورة[])-ROW(تفاصيل_الفاتورة[#Headers])), ROW(12:12)), MATCH($C$8, تفاصيل_الفاتورة[#Headers], 0)),\"\")","v":"الفاتورة 3-456-2 البيانات 12"},{"$f":"IFERROR(INDEX(تفاصيل_الفاتورة[],SMALL(IF(تفاصيل_الفاتورة[رقم الفاتورة]=rngInvoice,ROW(تفاصيل_الفاتورة[])-ROW(تفاصيل_الفاتورة[#Headers])), ROW(12:12)), MATCH($D$8, تفاصيل_الفاتورة[#Headers], 0)),\"\")","v":44},{"$f":"IFERROR(INDEX(تفاصيل_الفاتورة[],SMALL(IF(تفاصيل_الفاتورة[رقم الفاتورة]=rngInvoice,ROW(تفاصيل_الفاتورة[])-ROW(تفاصيل_الفاتورة[#Headers])), ROW(12:12)), MATCH($E$8, تفاصيل_الفاتورة[#Headers], 0)),\"\")","v":{"v":1,"d":"ر.س.‏ 1.00"}},{"$f":"IFERROR(INDEX(تفاصيل_الفاتورة[],SMALL(IF(تفاصيل_الفاتورة[رقم الفاتورة]=rngInvoice,ROW(تفاصيل_الفاتورة[])-ROW(تفاصيل_الفاتورة[#Headers])), ROW(12:12)), MATCH($F$8, تفاصيل_الفاتورة[#Headers], 0)),\"\")","v":0},{"v":44,"d":"ر.س.‏ 44.00"}]
[null,{"$f":"IFERROR(INDEX(تفاصيل_الفاتورة[],SMALL(IF(تفاصيل_الفاتورة[رقم الفاتورة]=rngInvoice,ROW(تفاصيل_الفاتورة[])-ROW(تفاصيل_الفاتورة[#Headers])), ROW(13:13)), MATCH($B$8, تفاصيل_الفاتورة[#Headers], 0)),\"\")","v":""},{"$f":"IFERROR(INDEX(تفاصيل_الفاتورة[],SMALL(IF(تفاصيل_الفاتورة[رقم الفاتورة]=rngInvoice,ROW(تفاصيل_الفاتورة[])-ROW(تفاصيل_الفاتورة[#Headers])), ROW(13:13)), MATCH($C$8, تفاصيل_الفاتورة[#Headers], 0)),\"\")","v":""},{"$f":"IFERROR(INDEX(تفاصيل_الفاتورة[],SMALL(IF(تفاصيل_الفاتورة[رقم الفاتورة]=rngInvoice,ROW(تفاصيل_الفاتورة[])-ROW(تفاصيل_الفاتورة[#Headers])), ROW(13:13)), MATCH($D$8, تفاصيل_الفاتورة[#Headers], 0)),\"\")","v":""},{"$f":"IFERROR(INDEX(تفاصيل_الفاتورة[],SMALL(IF(تفاصيل_الفاتورة[رقم الفاتورة]=rngInvoice,ROW(تفاصيل_الفاتورة[])-ROW(تفاصيل_الفاتورة[#Headers])), ROW(13:13)), MATCH($E$8, تفاصيل_الفاتورة[#Headers], 0)),\"\")","v":""},{"$f":"IFERROR(INDEX(تفاصيل_الفاتورة[],SMALL(IF(تفاصيل_الفاتورة[رقم الفاتورة]=rngInvoice,ROW(تفاصيل_الفاتورة[])-ROW(تفاصيل_الفاتورة[#Headers])), ROW(13:13)), MATCH($F$8, تفاصيل_الفاتورة[#Headers], 0)),\"\")","v":""},""]
[null,{"$f":"IFERROR(INDEX(تفاصيل_الفاتورة[],SMALL(IF(تفاصيل_الفاتورة[رقم الفاتورة]=rngInvoice,ROW(تفاصيل_الفاتورة[])-ROW(تفاصيل_الفاتورة[#Headers])), ROW(14:14)), MATCH($B$8, تفاصيل_الفاتورة[#Headers], 0)),\"\")","v":""},{"$f":"IFERROR(INDEX(تفاصيل_الفاتورة[],SMALL(IF(تفاصيل_الفاتورة[رقم الفاتورة]=rngInvoice,ROW(تفاصيل_الفاتورة[])-ROW(تفاصيل_الفاتورة[#Headers])), ROW(14:14)), MATCH($C$8, تفاصيل_الفاتورة[#Headers], 0)),\"\")","v":""},{"$f":"IFERROR(INDEX(تفاصيل_الفاتورة[],SMALL(IF(تفاصيل_الفاتورة[رقم الفاتورة]=rngInvoice,ROW(تفاصيل_الفاتورة[])-ROW(تفاصيل_الفاتورة[#Headers])), ROW(14:14)), MATCH($D$8, تفاصيل_الفاتورة[#Headers], 0)),\"\")","v":""},{"$f":"IFERROR(INDEX(تفاصيل_الفاتورة[],SMALL(IF(تفاصيل_الفاتورة[رقم الفاتورة]=rngInvoice,ROW(تفاصيل_الفاتورة[])-ROW(تفاصيل_الفاتورة[#Headers])), ROW(14:14)), MATCH($E$8, تفاصيل_الفاتورة[#Headers], 0)),\"\")","v":""},{"$f":"IFERROR(INDEX(تفاصيل_الفاتورة[],SMALL(IF(تفاصيل_الفاتورة[رقم الفاتورة]=rngInvoice,ROW(تفاصيل_الفاتورة[])-ROW(تفاصيل_الفاتورة[#Headers])), ROW(14:14)), MATCH($F$8, تفاصيل_الفاتورة[#Headers], 0)),\"\")","v":""},""]
[null,{"$f":"IFERROR(INDEX(تفاصيل_الفاتورة[],SMALL(IF(تفاصيل_الفاتورة[رقم الفاتورة]=rngInvoice,ROW(تفاصيل_الفاتورة[])-ROW(تفاصيل_الفاتورة[#Headers])), ROW(15:15)), MATCH($B$8, تفاصيل_الفاتورة[#Headers], 0)),\"\")","v":""},{"$f":"IFERROR(INDEX(تفاصيل_الفاتورة[],SMALL(IF(تفاصيل_الفاتورة[رقم الفاتورة]=rngInvoice,ROW(تفاصيل_الفاتورة[])-ROW(تفاصيل_الفاتورة[#Headers])), ROW(15:15)), MATCH($C$8, تفاصيل_الفاتورة[#Headers], 0)),\"\")","v":""},{"$f":"IFERROR(INDEX(تفاصيل_الفاتورة[],SMALL(IF(تفاصيل_الفاتورة[رقم الفاتورة]=rngInvoice,ROW(تفاصيل_الفاتورة[])-ROW(تفاصيل_الفاتورة[#Headers])), ROW(15:15)), MATCH($D$8, تفاصيل_الفاتورة[#Headers], 0)),\"\")","v":""},{"$f":"IFERROR(INDEX(تفاصيل_الفاتورة[],SMALL(IF(تفاصيل_الفاتورة[رقم الفاتورة]=rngInvoice,ROW(تفاصيل_الفاتورة[])-ROW(تفاصيل_الفاتورة[#Headers])), ROW(15:15)), MATCH($E$8, تفاصيل_الفاتورة[#Headers], 0)),\"\")","v":""},{"$f":"IFERROR(INDEX(تفاصيل_الفاتورة[],SMALL(IF(تفاصيل_الفاتورة[رقم الفاتورة]=rngInvoice,ROW(تفاصيل_الفاتورة[])-ROW(تفاصيل_الفاتورة[#Headers])), ROW(15:15)), MATCH($F$8, تفاصيل_الفاتورة[#Headers], 0)),\"\")","v":""},""]
[null,{"$f":"IFERROR(INDEX(تفاصيل_الفاتورة[],SMALL(IF(تفاصيل_الفاتورة[رقم الفاتورة]=rngInvoice,ROW(تفاصيل_الفاتورة[])-ROW(تفاصيل_الفاتورة[#Headers])), ROW(16:16)), MATCH($B$8, تفاصيل_الفاتورة[#Headers], 0)),\"\")","v":""},{"$f":"IFERROR(INDEX(تفاصيل_الفاتورة[],SMALL(IF(تفاصيل_الفاتورة[رقم الفاتورة]=rngInvoice,ROW(تفاصيل_الفاتورة[])-ROW(تفاصيل_الفاتورة[#Headers])), ROW(16:16)), MATCH($C$8, تفاصيل_الفاتورة[#Headers], 0)),\"\")","v":""},{"$f":"IFERROR(INDEX(تفاصيل_الفاتورة[],SMALL(IF(تفاصيل_الفاتورة[رقم الفاتورة]=rngInvoice,ROW(تفاصيل_الفاتورة[])-ROW(تفاصيل_الفاتورة[#Headers])), ROW(16:16)), MATCH($D$8, تفاصيل_الفاتورة[#Headers], 0)),\"\")","v":""},{"$f":"IFERROR(INDEX(تفاصيل_الفاتورة[],SMALL(IF(تفاصيل_الفاتورة[رقم الفاتورة]=rngInvoice,ROW(تفاصيل_الفاتورة[])-ROW(تفاصيل_الفاتورة[#Headers])), ROW(16:16)), MATCH($E$8, تفاصيل_الفاتورة[#Headers], 0)),\"\")","v":""},{"$f":"IFERROR(INDEX(تفاصيل_الفاتورة[],SMALL(IF(تفاصيل_الفاتورة[رقم الفاتورة]=rngInvoice,ROW(تفاصيل_الفاتورة[])-ROW(تفاصيل_الفاتورة[#Headers])), ROW(16:16)), MATCH($F$8, تفاصيل_الفاتورة[#Headers], 0)),\"\")","v":""},""]
[null,{"$f":"IFERROR(INDEX(تفاصيل_الفاتورة[],SMALL(IF(تفاصيل_الفاتورة[رقم الفاتورة]=rngInvoice,ROW(تفاصيل_الفاتورة[])-ROW(تفاصيل_الفاتورة[#Headers])), ROW(17:17)), MATCH($B$8, تفاصيل_الفاتورة[#Headers], 0)),\"\")","v":""},{"$f":"IFERROR(INDEX(تفاصيل_الفاتورة[],SMALL(IF(تفاصيل_الفاتورة[رقم الفاتورة]=rngInvoice,ROW(تفاصيل_الفاتورة[])-ROW(تفاصيل_الفاتورة[#Headers])), ROW(17:17)), MATCH($C$8, تفاصيل_الفاتورة[#Headers], 0)),\"\")","v":""},{"$f":"IFERROR(INDEX(تفاصيل_الفاتورة[],SMALL(IF(تفاصيل_الفاتورة[رقم الفاتورة]=rngInvoice,ROW(تفاصيل_الفاتورة[])-ROW(تفاصيل_الفاتورة[#Headers])), ROW(17:17)), MATCH($D$8, تفاصيل_الفاتورة[#Headers], 0)),\"\")","v":""},{"$f":"IFERROR(INDEX(تفاصيل_الفاتورة[],SMALL(IF(تفاصيل_الفاتورة[رقم الفاتورة]=rngInvoice,ROW(تفاصيل_الفاتورة[])-ROW(تفاصيل_الفاتورة[#Headers])), ROW(17:17)), MATCH($E$8, تفاصيل_الفاتورة[#Headers], 0)),\"\")","v":""},{"$f":"IFERROR(INDEX(تفاصيل_الفاتورة[],SMALL(IF(تفاصيل_الفاتورة[رقم الفاتورة]=rngInvoice,ROW(تفاصيل_الفاتورة[])-ROW(تفاصيل_الفاتورة[#Headers])), ROW(17:17)), MATCH($F$8, تفاصيل_الفاتورة[#Headers], 0)),\"\")","v":""},""]
[null,{"$f":"IFERROR(INDEX(تفاصيل_الفاتورة[],SMALL(IF(تفاصيل_الفاتورة[رقم الفاتورة]=rngInvoice,ROW(تفاصيل_الفاتورة[])-ROW(تفاصيل_الفاتورة[#Headers])), ROW(18:18)), MATCH($B$8, تفاصيل_الفاتورة[#Headers], 0)),\"\")","v":""},{"$f":"IFERROR(INDEX(تفاصيل_الفاتورة[],SMALL(IF(تفاصيل_الفاتورة[رقم الفاتورة]=rngInvoice,ROW(تفاصيل_الفاتورة[])-ROW(تفاصيل_الفاتورة[#Headers])), ROW(18:18)), MATCH($C$8, تفاصيل_الفاتورة[#Headers], 0)),\"\")","v":""},{"$f":"IFERROR(INDEX(تفاصيل_الفاتورة[],SMALL(IF(تفاصيل_الفاتورة[رقم الفاتورة]=rngInvoice,ROW(تفاصيل_الفاتورة[])-ROW(تفاصيل_الفاتورة[#Headers])), ROW(18:18)), MATCH($D$8, تفاصيل_الفاتورة[#Headers], 0)),\"\")","v":""},{"$f":"IFERROR(INDEX(تفاصيل_الفاتورة[],SMALL(IF(تفاصيل_الفاتورة[رقم الفاتورة]=rngInvoice,ROW(تفاصيل_الفاتورة[])-ROW(تفاصيل_الفاتورة[#Headers])), ROW(18:18)), MATCH($E$8, تفاصيل_الفاتورة[#Headers], 0)),\"\")","v":""},{"$f":"IFERROR(INDEX(تفاصيل_الفاتورة[],SMALL(IF(تفاصيل_الفاتورة[رقم الفاتورة]=rngInvoice,ROW(تفاصيل_الفاتورة[])-ROW(تفاصيل_الفاتورة[#Headers])), ROW(18:18)), MATCH($F$8, تفاصيل_الفاتورة[#Headers], 0)),\"\")","v":""},""]
[null,{"$f":"IFERROR(INDEX(تفاصيل_الفاتورة[],SMALL(IF(تفاصيل_الفاتورة[رقم الفاتورة]=rngInvoice,ROW(تفاصيل_الفاتورة[])-ROW(تفاصيل_الفاتورة[#Headers])), ROW(19:19)), MATCH($B$8, تفاصيل_الفاتورة[#Headers], 0)),\"\")","v":""},{"$f":"IFERROR(INDEX(تفاصيل_الفاتورة[],SMALL(IF(تفاصيل_الفاتورة[رقم الفاتورة]=rngInvoice,ROW(تفاصيل_الفاتورة[])-ROW(تفاصيل_الفاتورة[#Headers])), ROW(19:19)), MATCH($C$8, تفاصيل_الفاتورة[#Headers], 0)),\"\")","v":""},{"$f":"IFERROR(INDEX(تفاصيل_الفاتورة[],SMALL(IF(تفاصيل_الفاتورة[رقم الفاتورة]=rngInvoice,ROW(تفاصيل_الفاتورة[])-ROW(تفاصيل_الفاتورة[#Headers])), ROW(19:19)), MATCH($D$8, تفاصيل_الفاتورة[#Headers], 0)),\"\")","v":""},{"$f":"IFERROR(INDEX(تفاصيل_الفاتورة[],SMALL(IF(تفاصيل_الفاتورة[رقم الفاتورة]=rngInvoice,ROW(تفاصيل_الفاتورة[])-ROW(تفاصيل_الفاتورة[#Headers])), ROW(19:19)), MATCH($E$8, تفاصيل_الفاتورة[#Headers], 0)),\"\")","v":""},{"$f":"IFERROR(INDEX(تفاصيل_الفاتورة[],SMALL(IF(تفاصيل_الفاتورة[رقم الفاتورة]=rngInvoice,ROW(تفاصيل_الفاتورة[])-ROW(تفاصيل_الفاتورة[#Headers])), ROW(19:19)), MATCH($F$8, تفاصيل_الفاتورة[#Headers], 0)),\"\")","v":""},""]
[null,{"$f":"IFERROR(INDEX(تفاصيل_الفاتورة[],SMALL(IF(تفاصيل_الفاتورة[رقم الفاتورة]=rngInvoice,ROW(تفاصيل_الفاتورة[])-ROW(تفاصيل_الفاتورة[#Headers])), ROW(20:20)), MATCH($B$8, تفاصيل_الفاتورة[#Headers], 0)),\"\")","v":""},{"$f":"IFERROR(INDEX(تفاصيل_الفاتورة[],SMALL(IF(تفاصيل_الفاتورة[رقم الفاتورة]=rngInvoice,ROW(تفاصيل_الفاتورة[])-ROW(تفاصيل_الفاتورة[#Headers])), ROW(20:20)), MATCH($C$8, تفاصيل_الفاتورة[#Headers], 0)),\"\")","v":""},{"$f":"IFERROR(INDEX(تفاصيل_الفاتورة[],SMALL(IF(تفاصيل_الفاتورة[رقم الفاتورة]=rngInvoice,ROW(تفاصيل_الفاتورة[])-ROW(تفاصيل_الفاتورة[#Headers])), ROW(20:20)), MATCH($D$8, تفاصيل_الفاتورة[#Headers], 0)),\"\")","v":""},{"$f":"IFERROR(INDEX(تفاصيل_الفاتورة[],SMALL(IF(تفاصيل_الفاتورة[رقم الفاتورة]=rngInvoice,ROW(تفاصيل_الفاتورة[])-ROW(تفاصيل_الفاتورة[#Headers])), ROW(20:20)), MATCH($E$8, تفاصيل_الفاتورة[#Headers], 0)),\"\")","v":""},{"$f":"IFERROR(INDEX(تفاصيل_الفاتورة[],SMALL(IF(تفاصيل_الفاتورة[رقم الفاتورة]=rngInvoice,ROW(تفاصيل_الفاتورة[])-ROW(تفاصيل_الفاتورة[#Headers])), ROW(20:20)), MATCH($F$8, تفاصيل_الفاتورة[#Headers], 0)),\"\")","v":""},""]
[null,{"$f":"IFERROR(INDEX(تفاصيل_الفاتورة[],SMALL(IF(تفاصيل_الفاتورة[رقم الفاتورة]=rngInvoice,ROW(تفاصيل_الفاتورة[])-ROW(تفاصيل_الفاتورة[#Headers])), ROW(21:21)), MATCH($B$8, تفاصيل_الفاتورة[#Headers], 0)),\"\")","v":""},{"$f":"IFERROR(INDEX(تفاصيل_الفاتورة[],SMALL(IF(تفاصيل_الفاتورة[رقم الفاتورة]=rngInvoice,ROW(تفاصيل_الفاتورة[])-ROW(تفاصيل_الفاتورة[#Headers])), ROW(21:21)), MATCH($C$8, تفاصيل_الفاتورة[#Headers], 0)),\"\")","v":""},{"$f":"IFERROR(INDEX(تفاصيل_الفاتورة[],SMALL(IF(تفاصيل_الفاتورة[رقم الفاتورة]=rngInvoice,ROW(تفاصيل_الفاتورة[])-ROW(تفاصيل_الفاتورة[#Headers])), ROW(21:21)), MATCH($D$8, تفاصيل_الفاتورة[#Headers], 0)),\"\")","v":""},{"$f":"IFERROR(INDEX(تفاصيل_الفاتورة[],SMALL(IF(تفاصيل_الفاتورة[رقم الفاتورة]=rngInvoice,ROW(تفاصيل_الفاتورة[])-ROW(تفاصيل_الفاتورة[#Headers])), ROW(21:21)), MATCH($E$8, تفاصيل_الفاتورة[#Headers], 0)),\"\")","v":""},{"$f":"IFERROR(INDEX(تفاصيل_الفاتورة[],SMALL(IF(تفاصيل_الفاتورة[رقم الفاتورة]=rngInvoice,ROW(تفاصيل_الفاتورة[])-ROW(تفاصيل_الفاتورة[#Headers])), ROW(21:21)), MATCH($F$8, تفاصيل_الفاتورة[#Headers], 0)),\"\")","v":""},""]
[null,{"$f":"IFERROR(INDEX(تفاصيل_الفاتورة[],SMALL(IF(تفاصيل_الفاتورة[رقم الفاتورة]=rngInvoice,ROW(تفاصيل_الفاتورة[])-ROW(تفاصيل_الفاتورة[#Headers])), ROW(22:22)), MATCH($B$8, تفاصيل_الفاتورة[#Headers], 0)),\"\")","v":""},{"$f":"IFERROR(INDEX(تفاصيل_الفاتورة[],SMALL(IF(تفاصيل_الفاتورة[رقم الفاتورة]=rngInvoice,ROW(تفاصيل_الفاتورة[])-ROW(تفاصيل_الفاتورة[#Headers])), ROW(22:22)), MATCH($C$8, تفاصيل_الفاتورة[#Headers], 0)),\"\")","v":""},{"$f":"IFERROR(INDEX(تفاصيل_الفاتورة[],SMALL(IF(تفاصيل_الفاتورة[رقم الفاتورة]=rngInvoice,ROW(تفاصيل_الفاتورة[])-ROW(تفاصيل_الفاتورة[#Headers])), ROW(22:22)), MATCH($D$8, تفاصيل_الفاتورة[#Headers], 0)),\"\")","v":""},{"$f":"IFERROR(INDEX(تفاصيل_الفاتورة[],SMALL(IF(تفاصيل_الفاتورة[رقم الفاتورة]=rngInvoice,ROW(تفاصيل_الفاتورة[])-ROW(تفاصيل_الفاتورة[#Headers])), ROW(22:22)), MATCH($E$8, تفاصيل_الفاتورة[#Headers], 0)),\"\")","v":""},{"$f":"IFERROR(INDEX(تفاصيل_الفاتورة[],SMALL(IF(تفاصيل_الفاتورة[رقم الفاتورة]=rngInvoice,ROW(تفاصيل_الفاتورة[])-ROW(تفاصيل_الفاتورة[#Headers])), ROW(22:22)), MATCH($F$8, تفاصيل_الفاتورة[#Headers], 0)),\"\")","v":""},""]
[null,{"$f":"IFERROR(INDEX(تفاصيل_الفاتورة[],SMALL(IF(تفاصيل_الفاتورة[رقم الفاتورة]=rngInvoice,ROW(تفاصيل_الفاتورة[])-ROW(تفاصيل_الفاتورة[#Headers])), ROW(23:23)), MATCH($B$8, تفاصيل_الفاتورة[#Headers], 0)),\"\")","v":""},{"$f":"IFERROR(INDEX(تفاصيل_الفاتورة[],SMALL(IF(تفاصيل_الفاتورة[رقم الفاتورة]=rngInvoice,ROW(تفاصيل_الفاتورة[])-ROW(تفاصيل_الفاتورة[#Headers])), ROW(23:23)), MATCH($C$8, تفاصيل_الفاتورة[#Headers], 0)),\"\")","v":""},{"$f":"IFERROR(INDEX(تفاصيل_الفاتورة[],SMALL(IF(تفاصيل_الفاتورة[رقم الفاتورة]=rngInvoice,ROW(تفاصيل_الفاتورة[])-ROW(تفاصيل_الفاتورة[#Headers])), ROW(23:23)), MATCH($D$8, تفاصيل_الفاتورة[#Headers], 0)),\"\")","v":""},{"$f":"IFERROR(INDEX(تفاصيل_الفاتورة[],SMALL(IF(تفاصيل_الفاتورة[رقم الفاتورة]=rngInvoice,ROW(تفاصيل_الفاتورة[])-ROW(تفاصيل_الفاتورة[#Headers])), ROW(23:23)), MATCH($E$8, تفاصيل_الفاتورة[#Headers], 0)),\"\")","v":""},{"$f":"IFERROR(INDEX(تفاصيل_الفاتورة[],SMALL(IF(تفاصيل_الفاتورة[رقم الفاتورة]=rngInvoice,ROW(تفاصيل_الفاتورة[])-ROW(تفاصيل_الفاتورة[#Headers])), ROW(23:23)), MATCH($F$8, تفاصيل_الفاتورة[#Headers], 0)),\"\")","v":""},""]
[null,{"$f":"IFERROR(INDEX(تفاصيل_الفاتورة[],SMALL(IF(تفاصيل_الفاتورة[رقم الفاتورة]=rngInvoice,ROW(تفاصيل_الفاتورة[])-ROW(تفاصيل_الفاتورة[#Headers])), ROW(24:24)), MATCH($B$8, تفاصيل_الفاتورة[#Headers], 0)),\"\")","v":""},{"$f":"IFERROR(INDEX(تفاصيل_الفاتورة[],SMALL(IF(تفاصيل_الفاتورة[رقم الفاتورة]=rngInvoice,ROW(تفاصيل_الفاتورة[])-ROW(تفاصيل_الفاتورة[#Headers])), ROW(24:24)), MATCH($C$8, تفاصيل_الفاتورة[#Headers], 0)),\"\")","v":""},{"$f":"IFERROR(INDEX(تفاصيل_الفاتورة[],SMALL(IF(تفاصيل_الفاتورة[رقم الفاتورة]=rngInvoice,ROW(تفاصيل_الفاتورة[])-ROW(تفاصيل_الفاتورة[#Headers])), ROW(24:24)), MATCH($D$8, تفاصيل_الفاتورة[#Headers], 0)),\"\")","v":""},{"$f":"IFERROR(INDEX(تفاصيل_الفاتورة[],SMALL(IF(تفاصيل_الفاتورة[رقم الفاتورة]=rngInvoice,ROW(تفاصيل_الفاتورة[])-ROW(تفاصيل_الفاتورة[#Headers])), ROW(24:24)), MATCH($E$8, تفاصيل_الفاتورة[#Headers], 0)),\"\")","v":""},{"$f":"IFERROR(INDEX(تفاصيل_الفاتورة[],SMALL(IF(تفاصيل_الفاتورة[رقم الفاتورة]=rngInvoice,ROW(تفاصيل_الفاتورة[])-ROW(تفاصيل_الفاتورة[#Headers])), ROW(24:24)), MATCH($F$8, تفاصيل_الفاتورة[#Headers], 0)),\"\")","v":""},""]
[null,{"$f":"IFERROR(INDEX(تفاصيل_الفاتورة[],SMALL(IF(تفاصيل_الفاتورة[رقم الفاتورة]=rngInvoice,ROW(تفاصيل_الفاتورة[])-ROW(تفاصيل_الفاتورة[#Headers])), ROW(25:25)), MATCH($B$8, تفاصيل_الفاتورة[#Headers], 0)),\"\")","v":""},{"$f":"IFERROR(INDEX(تفاصيل_الفاتورة[],SMALL(IF(تفاصيل_الفاتورة[رقم الفاتورة]=rngInvoice,ROW(تفاصيل_الفاتورة[])-ROW(تفاصيل_الفاتورة[#Headers])), ROW(25:25)), MATCH($C$8, تفاصيل_الفاتورة[#Headers], 0)),\"\")","v":""},{"$f":"IFERROR(INDEX(تفاصيل_الفاتورة[],SMALL(IF(تفاصيل_الفاتورة[رقم الفاتورة]=rngInvoice,ROW(تفاصيل_الفاتورة[])-ROW(تفاصيل_الفاتورة[#Headers])), ROW(25:25)), MATCH($D$8, تفاصيل_الفاتورة[#Headers], 0)),\"\")","v":""},{"$f":"IFERROR(INDEX(تفاصيل_الفاتورة[],SMALL(IF(تفاصيل_الفاتورة[رقم الفاتورة]=rngInvoice,ROW(تفاصيل_الفاتورة[])-ROW(تفاصيل_الفاتورة[#Headers])), ROW(25:25)), MATCH($E$8, تفاصيل_الفاتورة[#Headers], 0)),\"\")","v":""},{"$f":"IFERROR(INDEX(تفاصيل_الفاتورة[],SMALL(IF(تفاصيل_الفاتورة[رقم الفاتورة]=rngInvoice,ROW(تفاصيل_الفاتورة[])-ROW(تفاصيل_الفاتورة[#Headers])), ROW(25:25)), MATCH($F$8, تفاصيل_الفاتورة[#Headers], 0)),\"\")","v":""},""]
[{"$nulls":5},"الإجمالي الفرعي للفاتورة",{"$f":"SUM(ProjectInvoice[السعر])","v":{"v":2014,"d":"ر.س.‏ 2,014.00"}}]
[{"$nulls":5},"معدل الضريبة",{"$f":"VLOOKUP(rngInvoice,الفواتير_رئيسية[],5)","v":{"v":0.0875,"d":"8.75%"}}]
[{"$nulls":5},"ضريبة المبيعات",{"$f":"G34*G35","v":{"v":176.225,"d":"ر.س.‏ 176.23"}}]
[{"$nulls":5},"أخرى",{"$f":"VLOOKUP(rngInvoice,الفواتير_رئيسية[],6)","v":0}]
[null,{"$f":"\"تُدفع كل الشيكات إلى \"&اسم_الشركة&\".\"","v":"تُدفع كل الشيكات إلى اسم الشركة."},{"$nulls":3},"المبلغ المُستلم",{"$f":"VLOOKUP(rngInvoice,الفواتير_رئيسية[],7)","v":0}]
[null,"الإجمالي المستحق في <#> من الأيام. تخضع الحسابات المتأخرة إلى رسوم خدمة بنسبة <#>% في الشهر.",{"$nulls":3},"الإجمالي",{"$f":"(G34+G36+G37)-G38","v":{"v":2190.225,"d":"ر.س.‏ 2,190.23"}}]

{"sheet":"العملاء","index":1,"n_rows":6,"n_cols":12,"rows_kept":6}
[]
[null,null,"العملاء"]
[null,"البحث","رقم الشركة","اسم الشركة","اسم جهة الاتصال","العنوان","المدينة","المنطقة","الرمز البريدي","الهاتف","البريد الإلكتروني","الفاكس"]
[null,{"$f":"C4& \" - \"&D4","v":"1 - Tailspin Toys "},1,"Tailspin Toys ","Robert Lyon","345 شارع العليا","الدمام","الشرقية","123456","432-555-0178","someone@example.com","432-555-0187"]
[null,"2 - Contoso, Ltd",2,"Contoso, Ltd","Sanjay Patel","567 شارع هشام بن عبد الملك","الرياض","الرياض","098765","432-555-0189","someone@example.com","432-555-0123"]
[null,"الإجماليات",{"$f":"\"إجمالي العملاء: \"&SUBTOTAL(103,قائمة_العملاء[رقم الشركة])","v":"إجمالي العملاء: 2"}]

{"sheet":"الفواتير - رئيسية","index":2,"n_rows":6,"n_cols":11,"rows_kept":6}
[]
[null,"فواتير"]
[null,"رقم الفاتورة","الشركة","تاريخ الفاتورة","وصف المشروع","معدل الضريبة","أخرى","الدفعة","إجمالي التفاصيل","إجمالي الفاتورة","الملاحظات"]
[null,"3-456-1","1 - Tailspin Toys ",{"$f":"TODAY()","v":"2019-07-29"},"المشروع 1",{"v":0.0875,"d":"8.75%"},{"v":100,"d":"ر.س.‏ 100.00"},{"v":100,"d":"ر.س.‏ 100.00"},{"$f":"SUMIF(تفاصيل_الفاتورة[رقم الفاتورة],\"=\"&الفواتير_رئيسية[[#This Row],[رقم الفاتورة]],تفاصيل_الفاتورة[الإجمالي])","v":{"v":5200,"d":"ر.س.‏ 5,200.00"}},{"$f":"(الفواتير_رئيسية[[#This Row],[إجمالي التفاصيل]]*(1+الفواتير_رئيسية[[#This Row],[معدل الضريبة]]))+الفواتير_رئيسية[[#This Row],[أخرى]]-الفواتير_رئيسية[[#This Row],[الدفعة]]","v":{"v":5654.999999999999,"d":"ر.س.‏ 5,655.00"}}]
[null,"3-456-2","2 - Contoso, Ltd",{"$f":"TODAY()+10","v":"2019-08-08"},"المشروع 2",{"v":0.0875,"d":"8.75%"},null,null,{"$f":"SUMIF(تفاصيل_الفاتورة[رقم الفاتورة],\"=\"&الفواتير_رئيسية[[#This Row],[رقم الفاتورة]],تفاصيل_الفاتورة[الإجمالي])","v":{"v":2014,"d":"ر.س.‏ 2,014.00"}},{"$f":"(الفواتير_رئيسية[[#This Row],[إجمالي التفاصيل]]*(1+الفواتير_رئيسية[[#This Row],[معدل الضريبة]]))+الفواتير_رئيسية[[#This Row],[أخرى]]-الفواتير_رئيسية[[#This Row],[الدفعة]]","v":{"v":2190.225,"d":"ر.س.‏ 2,190.23"}}]
[null,"الإجماليات",{"$f":"\"إجمالي الفواتير: \"&SUBTOTAL(103,الفواتير_رئيسية[رقم الفاتورة])","v":"إجمالي الفواتير: 2"},{"$nulls":3},{"$f":"SUBTOTAL(109,الفواتير_رئيسية[أخرى])","v":{"v":100,"d":"ر.س.‏ 100.00"}},{"$f":"SUBTOTAL(109,الفواتير_رئيسية[الدفعة])","v":{"v":100,"d":"ر.س.‏ 100.00"}},{"$f":"SUBTOTAL(109,الفواتير_رئيسية[إجمالي التفاصيل])","v":{"v":7214,"d":"ر.س.‏ 7,214.00"}},{"$f":"SUBTOTAL(109,الفواتير_رئيسية[إجمالي الفاتورة])","v":{"v":7845.2249999999985,"d":"ر.س.‏ 7,845.23"}}]

{"sheet":"تفاصيل الفاتورة","index":3,"n_rows":40,"n_cols":8,"rows_kept":40}
[]
[null,"تفاصيل الفاتورة"]
[null,"الوصف","رقم الفاتورة","رقم العنصر","الكمية","سعر الوحدة","الخصم","الإجمالي"]
[null,"الفاتورة 3-456-1 البيانات 1","3-456-1",1,1,{"v":1,"d":"ر.س.‏ 1.00"},{"v":1,"d":"ر.س.‏ 1.00"},{"$f":"(تفاصيل_الفاتورة[[#This Row],[الكمية]]*تفاصيل_الفاتورة[[#This Row],[سعر الوحدة]])-تفاصيل_الفاتورة[[#This Row],[الخصم]]","v":{"v":0,"d":"ر.س.‏ 0.00"}}]
[null,"الفاتورة 3-456-1 البيانات 2","3-456-1",2,2,{"v":2,"d":"ر.س.‏ 2.00"},{"v":2,"d":"ر.س.‏ 2.00"},{"$f":"(تفاصيل_الفاتورة[[#This Row],[الكمية]]*تفاصيل_الفاتورة[[#This Row],[سعر الوحدة]])-تفاصيل_الفاتورة[[#This Row],[الخصم]]","v":{"v":2,"d":"ر.س.‏ 2.00"}}]
[null,"الفاتورة 3-456-1 البيانات 3","3-456-1",3,3,{"v":3,"d":"ر.س.‏ 3.00"},{"v":3,"d":"ر.س.‏ 3.00"},{"$f":"(تفاصيل_الفاتورة[[#This Row],[الكمية]]*تفاصيل_الفاتورة[[#This Row],[سعر الوحدة]])-تفاصيل_الفاتورة[[#This Row],[الخصم]]","v":{"v":6,"d":"ر.س.‏ 6.00"}}]
[null,"الفاتورة 3-456-1 البيانات 4","3-456-1",4,4,{"v":4,"d":"ر.س.‏ 4.00"},{"v":4,"d":"ر.س.‏ 4.00"},{"$f":"(تفاصيل_الفاتورة[[#This Row],[الكمية]]*تفاصيل_الفاتورة[[#This Row],[سعر الوحدة]])-تفاصيل_الفاتورة[[#This Row],[الخصم]]","v":{"v":12,"d":"ر.س.‏ 12.00"}}]
[null,"الفاتورة 3-456-1 البيانات 5","3-456-1",5,5,{"v":5,"d":"ر.س.‏ 5.00"},{"v":5,"d":"ر.س.‏ 5.00"},{"$f":"(تفاصيل_الفاتورة[[#This Row],[الكمية]]*تفاصيل_الفاتورة[[#This Row],[سعر الوحدة]])-تفاصيل_الفاتورة[[#This Row],[الخصم]]","v":{"v":20,"d":"ر.س.‏ 20.00"}}]
[null,"الفاتورة 3-456-1 البيانات 6","3-456-1",6,6,{"v":6,"d":"ر.س.‏ 6.00"},{"v":6,"d":"ر.س.‏ 6.00"},{"$f":"(تفاصيل_الفاتورة[[#This Row],[الكمية]]*تفاصيل_الفاتورة[[#This Row],[سعر الوحدة]])-تفاصيل_الفاتورة[[#This Row],[الخصم]]","v":{"v":30,"d":"ر.س.‏ 30.00"}}]
[null,"الفاتورة 3-456-1 البيانات 7","3-456-1",7,7,{"v":7,"d":"ر.س.‏ 7.00"},{"v":7,"d":"ر.س.‏ 7.00"},{"$f":"(تفاصيل_الفاتورة[[#This Row],[الكمية]]*تفاصيل_الفاتورة[[#This Row],[سعر الوحدة]])-تفاصيل_الفاتورة[[#This Row],[الخصم]]","v":{"v":42,"d":"ر.س.‏ 42.00"}}]
[null,"الفاتورة 3-456-1 البيانات 8","3-456-1",8,8,{"v":8,"d":"ر.س.‏ 8.00"},{"v":8,"d":"ر.س.‏ 8.00"},{"$f":"(تفاصيل_الفاتورة[[#This Row],[الكمية]]*تفاصيل_الفاتورة[[#This Row],[سعر الوحدة]])-تفاصيل_الفاتورة[[#This Row],[الخصم]]","v":{"v":56,"d":"ر.س.‏ 56.00"}}]
[null,"الفاتورة 3-456-1 البيانات 9","3-456-1",9,9,{"v":9,"d":"ر.س.‏ 9.00"},{"v":9,"d":"ر.س.‏ 9.00"},{"$f":"(تفاصيل_الفاتورة[[#This Row],[الكمية]]*تفاصيل_الفاتورة[[#This Row],[سعر الوحدة]])-تفاصيل_الفاتورة[[#This Row],[الخصم]]","v":{"v":72,"d":"ر.س.‏ 72.00"}}]
[null,"الفاتورة 3-456-1 البيانات 10","3-456-1",10,10,{"v":10,"d":"ر.س.‏ 10.00"},{"v":10,"d":"ر.س.‏ 10.00"},{"$f":"(تفاصيل_الفاتورة[[#This Row],[الكمية]]*تفاصيل_الفاتورة[[#This Row],[سعر الوحدة]])-تفاصيل_الفاتورة[[#This Row],[الخصم]]","v":{"v":90,"d":"ر.س.‏ 90.00"}}]
[null,"الفاتورة 3-456-1 البيانات 11","3-456-1",11,11,{"v":11,"d":"ر.س.‏ 11.00"},{"v":11,"d":"ر.س.‏ 11.00"},{"$f":"(تفاصيل_الفاتورة[[#This Row],[الكمية]]*تفاصيل_الفاتورة[[#This Row],[سعر الوحدة]])-تفاصيل_الفاتورة[[#This Row],[الخصم]]","v":{"v":110,"d":"ر.س.‏ 110.00"}}]
[null,"الفاتورة 3-456-1 البيانات 12","3-456-1",12,12,{"v":12,"d":"ر.س.‏ 12.00"},{"v":12,"d":"ر.س.‏ 12.00"},{"$f":"(تفاصيل_الفاتورة[[#This Row],[الكمية]]*تفاصيل_الفاتورة[[#This Row],[سعر الوحدة]])-تفاصيل_الفاتورة[[#This Row],[الخصم]]","v":{"v":132,"d":"ر.س.‏ 132.00"}}]
[null,"الفاتورة 3-456-1 البيانات 13","3-456-1",13,13,{"v":13,"d":"ر.س.‏ 13.00"},{"v":13,"d":"ر.س.‏ 13.00"},{"$f":"(تفاصيل_الفاتورة[[#This Row],[الكمية]]*تفاصيل_الفاتورة[[#This Row],[سعر الوحدة]])-تفاصيل_الفاتورة[[#This Row],[الخصم]]","v":{"v":156,"d":"ر.س.‏ 156.00"}}]
[null,"الفاتورة 3-456-1 البيانات 14","3-456-1",14,14,{"v":14,"d":"ر.س.‏ 14.00"},{"v":14,"d":"ر.س.‏ 14.00"},{"$f":"(تفاصيل_الفاتورة[[#This Row],[الكمية]]*تفاصيل_الفاتورة[[#This Row],[سعر الوحدة]])-تفاصيل_الفاتورة[[#This Row],[الخصم]]","v":{"v":182,"d":"ر.س.‏ 182.00"}}]
[null,"الفاتورة 3-456-1 البيانات 15","3-456-1",15,15,{"v":15,"d":"ر.س.‏ 15.00"},{"v":15,"d":"ر.س.‏ 15.00"},{"$f":"(تفاصيل_الفاتورة[[#This Row],[الكمية]]*تفاصيل_الفاتورة[[#This Row],[سعر الوحدة]])-تفاصيل_الفاتورة[[#This Row],[الخصم]]","v":{"v":210,"d":"ر.س.‏ 210.00"}}]
[null,"الفاتورة 3-456-1 البيانات 16","3-456-1",16,16,{"v":16,"d":"ر.س.‏ 16.00"},{"v":16,"d":"ر.س.‏ 16.00"},{"$f":"(تفاصيل_الفاتورة[[#This Row],[الكمية]]*تفاصيل_الفاتورة[[#This Row],[سعر الوحدة]])-تفاصيل_الفاتورة[[#This Row],[الخصم]]","v":{"v":240,"d":"ر.س.‏ 240.00"}}]
[null,"الفاتورة 3-456-1 البيانات 17","3-456-1",17,17,{"v":17,"d":"ر.س.‏ 17.00"},{"v":17,"d":"ر.س.‏ 17.00"},{"$f":"(تفاصيل_الفاتورة[[#This Row],[الكمية]]*تفاصيل_الفاتورة[[#This Row],[سعر الوحدة]])-تفاصيل_الفاتورة[[#This Row],[الخصم]]","v":{"v":272,"d":"ر.س.‏ 272.00"}}]
[null,"الفاتورة 3-456-1 البيانات 18","3-456-1",18,18,{"v":18,"d":"ر.س.‏ 18.00"},{"v":18,"d":"ر.س.‏ 18.00"},{"$f":"(تفاصيل_الفاتورة[[#This Row],[الكمية]]*تفاصيل_الفاتورة[[#This Row],[سعر الوحدة]])-تفاصيل_الفاتورة[[#This Row],[الخصم]]","v":{"v":306,"d":"ر.س.‏ 306.00"}}]
[null,"الفاتورة 3-456-1 البيانات 19","3-456-1",19,19,{"v":19,"d":"ر.س.‏ 19.00"},{"v":19,"d":"ر.س.‏ 19.00"},{"$f":"(تفاصيل_الفاتورة[[#This Row],[الكمية]]*تفاصيل_الفاتورة[[#This Row],[سعر الوحدة]])-تفاصيل_الفاتورة[[#This Row],[الخصم]]","v":{"v":342,"d":"ر.س.‏ 342.00"}}]
[null,"الفاتورة 3-456-1 البيانات 20","3-456-1",20,20,{"v":20,"d":"ر.س.‏ 20.00"},{"v":20,"d":"ر.س.‏ 20.00"},{"$f":"(تفاصيل_الفاتورة[[#This Row],[الكمية]]*تفاصيل_الفاتورة[[#This Row],[سعر الوحدة]])-تفاصيل_الفاتورة[[#This Row],[الخصم]]","v":{"v":380,"d":"ر.س.‏ 380.00"}}]
[null,"الفاتورة 3-456-1 البيانات 21","3-456-1",21,21,{"v":21,"d":"ر.س.‏ 21.00"},{"v":21,"d":"ر.س.‏ 21.00"},{"$f":"(تفاصيل_الفاتورة[[#This Row],[الكمية]]*تفاصيل_الفاتورة[[#This Row],[سعر الوحدة]])-تفاصيل_الفاتورة[[#This Row],[الخصم]]","v":{"v":420,"d":"ر.س.‏ 420.00"}}]
[null,"الفاتورة 3-456-1 البيانات 22","3-456-1",22,22,{"v":22,"d":"ر.س.‏ 22.00"},{"v":22,"d":"ر.س.‏ 22.00"},{"$f":"(تفاصيل_الفاتورة[[#This Row],[الكمية]]*تفاصيل_الفاتورة[[#This Row],[سعر الوحدة]])-تفاصيل_الفاتورة[[#This Row],[الخصم]]","v":{"v":462,"d":"ر.س.‏ 462.00"}}]
[null,"الفاتورة 3-456-1 البيانات 23","3-456-1",23,23,{"v":23,"d":"ر.س.‏ 23.00"},{"v":23,"d":"ر.س.‏ 23.00"},{"$f":"(تفاصيل_الفاتورة[[#This Row],[الكمية]]*تفاصيل_الفاتورة[[#This Row],[سعر الوحدة]])-تفاصيل_الفاتورة[[#This Row],[الخصم]]","v":{"v":506,"d":"ر.س.‏ 506.00"}}]
[null,"الفاتورة 3-456-1 البيانات 24","3-456-1",24,24,{"v":24,"d":"ر.س.‏ 24.00"},{"v":24,"d":"ر.س.‏ 24.00"},{"$f":"(تفاصيل_الفاتورة[[#This Row],[الكمية]]*تفاصيل_الفاتورة[[#This Row],[سعر الوحدة]])-تفاصيل_الفاتورة[[#This Row],[الخصم]]","v":{"v":552,"d":"ر.س.‏ 552.00"}}]
[null,"الفاتورة 3-456-1 البيانات 25","3-456-1",25,25,{"v":25,"d":"ر.س.‏ 25.00"},{"v":25,"d":"ر.س.‏ 25.00"},{"$f":"(تفاصيل_الفاتورة[[#This Row],[الكمية]]*تفاصيل_الفاتورة[[#This Row],[سعر الوحدة]])-تفاصيل_الفاتورة[[#This Row],[الخصم]]","v":{"v":600,"d":"ر.س.‏ 600.00"}}]
[null,"الفاتورة 3-456-2 البيانات 1","3-456-2","Z4567",39,{"v":5,"d":"ر.س.‏ 5.00"},null,{"$f":"(تفاصيل_الفاتورة[[#This Row],[الكمية]]*تفاصيل_الفاتورة[[#This Row],[سعر الوحدة]])-تفاصيل_الفاتورة[[#This Row],[الخصم]]","v":{"v":195,"d":"ر.س.‏ 195.00"}}]
[null,"الفاتورة 3-456-2 البيانات 2","3-456-2","Z4568",40,{"v":4,"d":"ر.س.‏ 4.00"},{"v":5,"d":"ر.س.‏ 5.00"},{"$f":"(تفاصيل_الفاتورة[[#This Row],[الكمية]]*تفاصيل_الفاتورة[[#This Row],[سعر الوحدة]])-تفاصيل_الفاتورة[[#This Row],[الخصم]]","v":{"v":155,"d":"ر.س.‏ 155.00"}}]
[null,"الفاتورة 3-456-2 البيانات 3","3-456-2","Z4569",30,{"v":6,"d":"ر.س.‏ 6.00"},{"v":7,"d":"ر.س.‏ 7.00"},{"$f":"(تفاصيل_الفاتورة[[#This Row],[الكمية]]*تفاصيل_الفاتورة[[#This Row],[سعر الوحدة]])-تفاصيل_الفاتورة[[#This Row],[الخصم]]","v":{"v":173,"d":"ر.س.‏ 173.00"}}]
[null,"الفاتورة 3-456-2 البيانات 4","3-456-2","Z4570",40,{"v":7,"d":"ر.س.‏ 7.00"},null,{"$f":"(تفاصيل_الفاتورة[[#This Row],[الكمية]]*تفاصيل_الفاتورة[[#This Row],[سعر الوحدة]])-تفاصيل_الفاتورة[[#This Row],[الخصم]]","v":{"v":280,"d":"ر.س.‏ 280.00"}}]
[null,"الفاتورة 3-456-2 البيانات 5","3-456-2","Z4571",10,{"v":4,"d":"ر.س.‏ 4.00"},null,{"$f":"(تفاصيل_الفاتورة[[#This Row],[الكمية]]*تفاصيل_الفاتورة[[#This Row],[سعر الوحدة]])-تفاصيل_الفاتورة[[#This Row],[الخصم]]","v":{"v":40,"d":"ر.س.‏ 40.00"}}]
[null,"الفاتورة 3-456-2 البيانات 6","3-456-2","Z4572",5,{"v":8,"d":"ر.س.‏ 8.00"},null,{"$f":"(تفاصيل_الفاتورة[[#This Row],[الكمية]]*تفاصيل_الفاتورة[[#This Row],[سعر الوحدة]])-تفاصيل_الفاتورة[[#This Row],[الخصم]]","v":{"v":40,"d":"ر.س.‏ 40.00"}}]
[null,"الفاتورة 3-456-2 البيانات 7","3-456-2","Z4573",70,{"v":6,"d":"ر.س.‏ 6.00"},null,{"$f":"(تفاصيل_الفاتورة[[#This Row],[الكمية]]*تفاصيل_الفاتورة[[#This Row],[سعر الوحدة]])-تفاصيل_الفاتورة[[#This Row],[الخصم]]","v":{"v":420,"d":"ر.س.‏ 420.00"}}]
[null,"الفاتورة 3-456-2 البيانات 8","3-456-2","Z4574",25,{"v":4,"d":"ر.س.‏ 4.00"},null,{"$f":"(تفاصيل_الفاتورة[[#This Row],[الكمية]]*تفاصيل_الفاتورة[[#This Row],[سعر الوحدة]])-تفاصيل_الفاتورة[[#This Row],[الخصم]]","v":{"v":100,"d":"ر.س.‏ 100.00"}}]
[null,"الفاتورة 3-456-2 البيانات 9","3-456-2","Z4575",5,{"v":7,"d":"ر.س.‏ 7.00"},{"v":3,"d":"ر.س.‏ 3.00"},{"$f":"(تفاصيل_الفاتورة[[#This Row],[الكمية]]*تفاصيل_الفاتورة[[#This Row],[سعر الوحدة]])-تفاصيل_الفاتورة[[#This Row],[الخصم]]","v":{"v":32,"d":"ر.س.‏ 32.00"}}]
[null,"الفاتورة 3-456-2 البيانات 10","3-456-2","Z4576",80,{"v":1,"d":"ر.س.‏ 1.00"},null,{"$f":"(تفاصيل_الفاتورة[[#This Row],[الكمية]]*تفاصيل_الفاتورة[[#This Row],[سعر الوحدة]])-تفاصيل_الفاتورة[[#This Row],[الخصم]]","v":{"v":80,"d":"ر.س.‏ 80.00"}}]
[null,"الفاتورة 3-456-2 البيانات 11","3-456-2","Z4577",65,{"v":7,"d":"ر.س.‏ 7.00"},null,{"$f":"(تفاصيل_الفاتورة[[#This Row],[الكمية]]*تفاصيل_الفاتورة[[#This Row],[سعر الوحدة]])-تفاصيل_الفاتورة[[#This Row],[الخصم]]","v":{"v":455,"d":"ر.س.‏ 455.00"}}]
[null,"الفاتورة 3-456-2 البيانات 12","3-456-2","Z4578",44,{"v":1,"d":"ر.س.‏ 1.00"},null,{"$f":"(تفاصيل_الفاتورة[[#This Row],[الكمية]]*تفاصيل_الفاتورة[[#This Row],[سعر الوحدة]])-تفاصيل_الفاتورة[[#This Row],[الخصم]]","v":{"v":44,"d":"ر.س.‏ 44.00"}}]

{"sheet":"حول متعقب الفاتورة","index":4,"n_rows":40,"n_cols":3,"rows_kept":40,"merged":[[3,1,3,7],[4,1,4,7],[5,1,5,7],[6,1,6,7],[7,2,7,7],[8,2,8,7],[9,2,9,7],[10,2,10,7],[11,2,11,7],[12,1,12,7],[13,2,13,3],[14,2,14,7],[15,1,15,7],[16,2,16,7],[17,2,17,7],[18,2,18,7],[19,2,19,7],[20,2,20,7],[21,2,21,7],[22,1,22,7],[23,1,23,7],[24,2,24,7],[25,2,25,7],[26,2,26,7],[27,2,27,7],[28,1,28,7],[29,1,29,7],[30,2,30,7],[31,2,31,7],[32,2,32,7],[33,2,33,7],[34,2,34,7],[36,2,36,7],[37,2,37,7],[38,2,38,7],[39,2,39,7]]}
[null,"حول متعقب الفاتورة"]
[]
[]
[null,"تم تصميم متعقب الفواتير للحفاظ على محفوظات العملاء والفواتير وتفاصيل الفاتورة حتى تتمكن من تخزين فواتير متعددة دون إنشاء ملفات متعددة. يمكنك أيضاً استخدام متعقب الفواتير لتحليل بياناتك التي تم إصدار فواتير بها مسبقاً. علي سبيل المثال، يمكنك عرض كل الفواتير لعميل أو مشروع معين، أو عرض كافة الفواتير الخاصة بالشهر الماضي، بالسنة الأخيرة، والمزيد."]
[null,"قبل البدء، قم بإلقاء نظرة على البيانات النموذجية المتوفرة. على ورقة الفاتورة، قم بتحديد الخلية الموجودة على الجانب الأيسر من الفاتورة (الخلية L8) وستظهر القائمة المنسدلة. حدد سهم القائمة المنسدلة ثم حدد نموذج فاتورة. لاحظ كيف يتم تغيير كل معلومات الفاتورة تلقائياً لتعكس الفاتورة المحددة. الآن قم بالاطلاع علي العملاء والفواتير - الرئيسية وأوراق تفاصيل الفاتورة. يوفر كل من هذه الأوراق معلومات حول الفاتورة وسيتم تحديث أي تغييرات تجريها تلقائياً. "]
[null,"كيف يمكنني بدء الاستخدام؟"]
[null,"قم بتعديل ورقة الفاتورة حتى تعكس معلومات الشركة الخاصة بك باستخدام الخطوات التالية:"]
[null,"1.","انتقل إلى ورقة الفاتورة، وضمن علامة التبويب مراجعة، في المجموعة الحماية، حدد إلغاء حماية الورقة. "]
[null,null,"ملاحظة: تتم حماية ورقة الفاتورة لمساعدتك على تجنّب التغييرات الغير مقصودة، بما أنه، كما تم ذكره مسبقا، يتم سحب معظم البيانات الموجودة في هذه الورقة من كل الأوراق الأخرى في المصنف. "]
[null,"2.","يمكنك تخصيص رأس الفاتورة من خلال كتابة اسم الشركة الخاصة بك وعنوان الشارع والمدينة والرمز البريدي وعنوان البريد الإلكتروني وموقع الويب وما إلى ذلك. في أسفل الفاتورة (الصف 43)، قم بتعديل إرشادات الدفع. "]
[null,null,"هام! لا تقم بتعديل معلومات الفوترة أو الفاتورة. تتضمن كل هذه الخلايا صيغًا ستقوم بتحديث الفاتورة تلقائياً، كما هو موضح في القسم حول متعقب الفاتورة.  "]
[null,"3.","(اختياري) قم بتعديل الألوان خلال المصنف : ضمن علامة التبويب تخطيط الصفحة، في المجموعة النُسُق، حدد الألوان و حدد مجموعة ألوان نسق أخرى من معرض الألوان. "]
[null,"تلميح : إنشاء مجموعة ألوان نسق مخصصة لمطابقة العلامة التجارية لشركك! للقيام بذلك، في علامة التبويب تخطيط الصفحة، في المجموعة النُسُق، حدد الألوان، ثم حدد تخصيص الألوان. للحصول علي المزيد من المعلومات حول إنشاء مجموعة ألوان مخصصة، قم بعرض مواضيع التعليمات التالية: "]
[null,null,"تخصيص نسق مستند."]
[null,"4.","بعد إجراءك للتغييرات المطلوبة، قم بالعودة إلى ورقة الفاتورة وفي علامة التبويب \"مراجعة\"، في المجموعة \"تغييرات\"، حدد \"حماية الورقة\"، ثم حدد \"موافق\". عندما تكون ورقة الفاتورة محمية، فإن الخلية الوحيدة التي يمكنك تحديدها هي الخلية التي تحتوي على القائمة المنسدلة لرقم الفاتورة."]
[null,"كيف يمكنني إنشاء فاتورة؟"]
[null,"1.","في ورقة العملاء، ادخل معلومات العميل مثل اسم الشركة والعنوان. لاحظ أن رقم الشركة هو إدخال هام حيث انه يوفر معرفاً فريداً لكل شركة يتم استخدامها من خلال متتبع الفواتير. لاحظ أيضًا أنك تحتاج فقط إلى إضافة شركة مرة واحدة. بالنسبة للفواتير اللاحقة لنفس الشركة، يمكن تخطي هذه الخطوة. "]
[null,null,"ملاحظة: إذا قمت بتعيين الرقم نفسه إلى أكثر من شركة واحدة أو إدخال اسم الشركة نفسه أكثر من مرة واحدة، ستتحول الإدخالات إلى اللون الأحمر لتنبيهك على التكرار. "]
[null,"2.","في ورقة الفواتير - الرئيسية، قم بإدخال المعلومات الأساسية للفاتورة مثل رقم الفاتورة و تاريخ الفاتورة ووصف المشروع. كما هو الحال لرقم الشركة، يعتبر رقم الفاتورة إدخالاً هاماً حيث انه يوفر معرفاً فريداً لكل فاتورة ويتم استخدامه في جميع أنحاء متتبع الفواتير. هناك إدخال آخر مهم وهو الشركة. عندما تقوم بتحديد شركة من القائمة المنسدلة المتوفرة، فإنه يربط الفاتورة الخاصة بك بتلك الشركة. بعد ذلك، عندما تقوم بتحديد رقم الفاتورة على ورقة الفاتورة، سيتم تعبئة معلومات الشركة، مثل اسم الشركة وعنوانها، تلقائيًا في الفاتورة."]
[null,null,"ملاحظة: إذا قمت بتعيين الرقم نفسه إلى أكثر من فاتورة واحدة، ستتحول الإدخالات إلى اللون الأحمر لتنبيهك على التكرار. "]
[null,"3.","في ورقة تفاصيل الفاتورة، قم بإدخال تفاصيل الفاتورة الخاصة بك، على سبيل المثال وصف لعنصر، رقم عنصر، الكمية وسعر الوحدة. توفر لك القائمة المنسدلة لرقم الفاتورة قائمةً بالفواتير التي أدخلتها في الورقة - الرئيسية للفواتير لتسهيل عملية إدخال البيانات. وبشكل مماثل لرقم الشركة في الخطوة السابقة، يقوم رقم الفاتورة بربط عنصر التفاصيل بفاتورة محددة. عندما تقوم بتحديد رقم الفاتورة على ورقه الفاتورة من القائمة المنسدلة لرقم الفاتورة، ستظهر عناصر تفاصيل الفاتورة ذات الصلة لتلك الفاتورة."]
[null,null,"ملاحظة: أنت مقيّد بـ 25 عنصر تفاصيل لكل فاتورة. إذا تمت إضافة أكثر من 25 عنصراً، ستتحول جميع الإدخالات المقابلة إلى اللون الأحمر لتنبيهك إلى هذا القيد. إذا كان لديك أكثر من 25 عنصر فاتورة، ستحتاج إلى إنشاء فاتورة ثانية. "]
[null,"كيف يمكنني إضافة المزيد من العملاء والفواتير وتفاصيل الفاتورة؟"]
[null,"يتم تخزين بيانات العملاء والفواتير وتفاصيل الفاتورة في جداول Excel. عندما تقوم بإضافة صف جديد إلى جدول، سيتم تنسيق الصف الذي تمت إضافته حديثاً تلقائياً وسيتم نسخ أي عمليات حسابية. لإضافة صفوف جديدة في الجدول، قم بأحد الإجراءات التالية :"]
[null,"● ","إذا كان الجدول لا يشتمل على صف \"الإجمالي\"، فقم بالكتابة أسفل الجدول وسيتم التوسيع تلقائياً عندما تقوم بالضغط على مفتاح الإدخال Enter أو مفتاح Tab."]
[null,"● ","ضع مؤشر الخلية في الخلية الأخيرة أعلى صف \"الإجمالي\"، مثل جدول الفواتير في خلية الملاحظات للفاتورة الأخيرة، ثم اضغط على Tab."]
[null,"● ","ضمن علامة التبويب الصفحة الرئيسية، في المجموعة خلايا، حدد إدراج، ثم حدد صف الجدول أعلاه أو صف الجدول أدناه. "]
[null,"● ","في الزاوية السفلية اليمنى من الجدول، ضع مؤشر الماوس على مقبض تغيير حجم الجدول واسحب لأسفل لزيادة عدد صفوف الجدول المتوفرة."]
[null,"كيف يمكنني تحليل تفاصيل الفاتورة؟"]
[null,"كما هو موضّح في القسم \"حول متتبع الفواتير\"، بعد قيامك بإدخال عدة فواتير، يمكنك عرض قائمة بجميع الفواتير لعميل و مشروع وفترة زمنية محددة وغير ذلك الكثير. يتم إنجاز هذا النوع من التحليل باستخدام عامل التصفية الذي يمكّنك من تضييق نطاق قائمة البيانات بسرعة. للوصول إلى عامل تصفية للعملاء أو الفواتير أو جداول تفاصيل الفواتير، حدد سهم القائمة المنسدلة إلى جانب أي اسم حقل جدول. سيتم عرض جزء التصفية مانحاً إيّاك مجموعة متنوعة من خيارات التصفية. فيما يلي بعض أمثلة التصفية لمساعدتك علي بدء الاستخدام :"]
[null,"● ","لعرض المبلغ الإجمالي الذي قمت بفوترته لعميل محدد : في ورقة الفواتير - الرئيسية، إلى يمين الحقل الخاص برقم الشركة، حدد سهم القائمة المنسدلة. في جزء عامل التصفية، انقر فوق \"تحديد الكل\" لإلغاء تحديد جميع الشركات، حدد الشركة المطلوبة ثم حدد موافق. "]
[null,null,"تلميح : في جزء عامل تصفية يمكنك أيضًا كتابة اسم العميل في مربع النص البحث للبحث بسرعة في القائمة المتاحة."]
[null,"● ","لعرض جميع الفواتير لعميل محدّد ومشروع (مشاريع) محدّد(ة) : ابدأ بالتصفية للعميل الذي تريده باستخدام الخطوات المذكورة في المثال السابق. بعد ذلك، إلى يمين رقم المشروع، حدد سهم القائمة المنسدلة. في جزء عامل التصفية، حدد المشروع أو المشاريع التي تريده، ثم حدد موافق. "]
[null,"● ","لعرض كافة فواتير الشهر الماضي : علي ورقة الفواتير - الرئيسية، إلى يمين الحقل \"تاريخ الفاتورة\"، حدد سهم القائمة المنسدلة، وأشر إلى \"عوامل تصفية التاريخ\"، ثم حدد \"الشهر الماضي\"."]
[null,"● ","لعرض كل العملاء الذين لديهم نفس رمز المنطقة : على ورقة العملاء، علة الجانب الأيمن من حقل \"الهاتف\"، حدد سهم القائمة المنسدلة. في جزء عامل التصفية، انقر فوق مربع نص البحث، واكتب رمز المنطقة، ثم حدد موافق. "]
[null,"تلميحات التصفية"]
[null,"● ","إذا كان الجدول يحتوي علي صف إجمالي، علي سبيل المثال \"العملاء\" و\"الفواتير\"، ستعكس الإجماليات المحسوبة القائمة المصفاة فقط."]
[null,"● ","استخدم عوامل تصفية متعددة على حقل واحد أو عبر حقول متعددة لتحسين النتائج."]
[null,"● ","لمسح عامل تصفيه واحد، حدد سهم القائمة المنسدلة للعمود الذي تمت تصفيته مسبقاً ثم حدد مسح عامل التصفية من <اسم الحقل>."]
[null,"● ","لمسح عوامل تصفية متعددة في الوقت نفسه، ضع مؤشر الخلية في الجدول، علي علامة التبويب الصفحة الرئيسية، في المجموعة تحرير، حد فرز وتصفية، ثم حدد مسح."]